bitfinex/quotes_SOLUSD_20250201
["timestamp","ask_amount","ask_price","bid_price","bid_amount"]
[1738443429728,1.14602499,218.86,218.76,3.5]
[1738443430031,1.6458,218.81,218.69,22.26944716]
[1738443430206,1.6458,218.81,218.7,3.5]
[1738443430409,1.6458,218.81,218.71,13.41184853]
[1738443432025,1.6458,218.81,218.71,40.25339569]
[1738443432244,1.6458,218.81,218.73,13.41184853]
[1738443432450,1.6458,218.81,218.71,22.26944716]
[1738443432626,1.6458,218.81,218.73,13.41184853]
[1738443433022,1.14602499,218.86,218.75,22.26944716]
[1738443433219,1.14602499,218.86,218.76,22.26944716]
[1738443433635,0.03,218.86,218.82,13.41184853]
[1738443433830,0.03,218.86,218.84,35.68129569]
[1738443434131,0.03,218.86,218.85,16.91184853]
[1738443434540,0.03,218.86,218.85,39.18129569]
[1738443435009,0.03,218.86,218.85,3.5]
[1738443435553,0.03,218.86,218.85,39.43227569]
[1738443436214,0.03,218.86,218.85,39.30678569]
[1738443437041,0.03,218.86,218.85,35.68129569]
[1738443437213,0.03,218.86,218.85,16.91184853]
[1738443437424,0.03,218.86,218.85,3.5]
[1738443438031,0.76107772,219.0,218.89,20.0]
[1738443438230,6.0858,219.09,218.98,22.26944716]
[1738443438411,1.6458,219.11,219.0,22.26944716]
[1738443438611,0.03,219.08,219.03,13.41184853]
[1738443438822,0.03,219.08,218.99,3.5]
[1738443439243,0.03,219.08,219.0,33.41184853]
[1738443439915,0.03,219.08,219.0,55.68129569]
[1738443440237,0.03,219.08,219.0,35.68129569]
[1738443440540,1.44455586,219.12,219.0,35.68129569]
[1738443440733,0.85577509,219.14,219.0,13.41184853]
[1738443440925,0.85577509,219.14,219.01,22.26944716]
[1738443441121,0.85577509,219.14,219.0,13.41184853]
[1738443441122,0.85577509,219.14,219.0,35.68129569]
[1738443441331,6.0858,219.15,219.07,13.41184853]
[1738443441527,1.13431648,219.16,219.09,13.41184853]
[1738443441834,6.2061,219.21,219.09,13.41184853]
[1738443442008,2.81421202,219.19,219.09,13.41184853]
[1738443442821,2.81421202,219.19,219.08,13.41184853]
[1738443443070,4.7180249,219.19,219.08,13.41184853]
[1738443443580,4.7180249,219.19,219.09,13.41184853]
[1738443444554,4.7180249,219.19,219.1,22.26944716]
[1738443444555,3.0722249,219.19,219.1,22.26944716]
[1738443444864,6.2061,219.21,219.11,3.5]
[1738443445048,0.85542567,219.2,219.1,3.5]
[1738443445236,7.33044254,219.21,219.1,3.5]
[1738443445442,9.30141291,219.21,219.1,3.5]
[1738443445633,9.30141291,219.21,219.11,13.41184853]
[1738443445836,9.30141291,219.21,219.1,3.5]
[1738443446231,9.30141291,219.21,219.11,13.41184853]
[1738443447223,6.2061,219.21,219.15,22.26944716]
[1738443447457,1.5657,219.24,219.15,22.26944716]
[1738443447458,1.5657,219.24,219.16,13.41184853]
[1738443448351,0.03,219.19,219.17,13.41184853]
[1738443448724,0.03,219.19,219.11,4.5637]
[1738443448725,0.03,219.19,219.12,22.26944716]
[1738443448951,0.03,219.19,219.13,22.26944716]
[1738443449254,0.03,219.19,219.14,13.41184853]
[1738443449651,0.03,219.19,219.17,13.41184853]
[1738443449955,0.03,219.19,219.18,35.68129569]
[1738443450357,0.03,219.19,219.18,13.41184853]
[1738443450532,0.03,219.19,219.18,35.68129569]
[1738443451049,3.11687908,219.29,219.19,13.41184853]
[1738443451251,6.5098,219.31,219.19,35.68129569]
[1738443451561,6.5098,219.31,219.2,22.26944716]
[1738443451770,6.5098,219.31,219.22,22.26944716]
[1738443452064,6.5098,219.31,219.22,3.5]
[1738443452257,8.40142236,219.31,219.22,3.5]
[1738443452763,9.53411123,219.31,219.22,3.5]
[1738443453460,6.5098,219.31,219.26,22.26944716]
[1738443453644,6.5098,219.31,219.23,13.41184853]
[1738443453645,6.5098,219.31,219.27,22.26944716]
[1738443453841,1.5657,219.36,219.27,22.26944716]
[1738443454040,2.72977003,219.36,219.27,22.26944716]
[1738443454254,2.72977003,219.36,219.23,13.41184853]
[1738443454255,2.72977003,219.36,219.28,22.26944716]
[1738443454670,2.72977003,219.36,219.29,22.26944716]
[1738443455049,4.66472301,219.36,219.27,13.41184853]
[1738443455248,4.66472301,219.36,219.23,40.24259569]
[1738443455249,6.5098,219.44,219.35,22.26944716]
[1738443455580,6.5098,219.44,219.39,22.26944716]
[1738443455787,3.15670052,219.46,219.38,13.41184853]
[1738443455788,2.00412129,219.46,219.43,22.26944716]
[1738443455941,0.03,219.46,219.43,22.26944716]
[1738443456381,0.03,219.46,219.44,13.41184853]
[1738443456747,0.03,219.46,219.37,4.5584]
[1738443456748,0.03,219.46,219.45,35.68129569]
[1738443457051,0.03,219.46,219.45,13.41184853]
[1738443458477,0.03,219.46,219.4,22.26944716]
[1738443458642,0.03,219.46,219.45,3.5]
[1738443459558,0.03,219.46,219.45,23.5]
[1738443460161,0.03,219.46,219.45,3.5]
[1738443461092,0.85409753,219.54,219.45,3.5]
[1738443461672,20.0,219.52,219.45,3.5]
[1738443461997,0.85428198,219.51,219.41,3.48]
[1738443464904,1.0,219.49,219.36,3.48]
[1738443465204,0.85450703,219.48,219.33,22.26944716]
[1738443465505,1.6234,219.47,219.34,25.74944716]
[1738443465667,0.85450273,219.46,219.34,16.89184853]
[1738443466300,0.96063729,219.47,219.35,0.68360585]
[1738443466675,0.69727936,219.46,219.35,0.68360585]
[1738443467601,0.69727936,219.46,219.31,22.26944716]
[1738443467602,7.32583729,219.45,219.31,22.26944716]
[1738443467790,6.3652,219.45,219.33,22.26944716]
[1738443467993,0.85454746,219.44,219.34,0.32820971]
[1738443468476,20.0,219.42,219.34,0.32820971]
[1738443468673,0.8547214,219.41,219.32,3.48]
[1738443469169,1.0,219.4,219.25,22.26944716]
[1738443469385,1.6234,219.38,219.26,3.48]
[1738443469589,0.85483991,219.37,219.26,3.48]
[1738443469797,0.85483991,219.37,219.22,22.26944716]
[1738443470030,6.3652,219.36,219.24,3.48]
[1738443470200,20.0,219.33,219.18,22.26944716]
[1738443470390,0.85506069,219.32,219.18,22.26944716]
[1738443470596,0.85506069,219.32,219.19,2.98]
[1738443470903,20.0,219.33,219.2,13.41184853]
[1738443471215,0.8550653,219.32,219.19,25.24944716]
[1738443471579,0.8550653,219.32,219.12,22.26944716]
[1738443471580,0.96063729,219.29,219.12,22.26944716]
[1738443471777,1.6234,219.26,219.13,3.48]
[1738443471976,0.8553071,219.25,219.19,0.063]
[1738443472708,20.0,219.24,219.19,0.063]
[1738443472900,0.85539752,219.23,219.19,0.063]
[1738443473095,2.75494774,219.26,219.19,0.063]
[1738443473283,20.0,219.24,219.19,0.063]
[1738443475395,20.0,219.24,219.14,13.08484853]
[1738443476507,4.72377918,219.26,219.16,22.26944716]
[1738443476918,4.72377918,219.26,219.18,22.26944716]
[1738443477094,6.3652,219.27,219.21,22.26944716]
[1738443477299,6.3652,219.27,219.2,22.26944716]
[1738443477510,6.3652,219.27,219.2,13.41184853]
[1738443478428,7.52115792,219.27,219.2,13.41184853]
[1738443478937,7.9886,219.32,219.22,13.41184853]
[1738443479092,7.9886,219.32,219.21,22.26944716]
[1738443479093,1.1141928,219.29,219.21,13.41184853]
[1738443479431,1.1141928,219.29,219.21,35.68129569]
[1738443479735,7.9886,219.32,219.22,13.41184853]
[1738443480230,7.9886,219.32,219.19,22.26944716]
[1738443480432,9.15539859,219.32,219.19,22.26944716]
[1738443480597,9.15539859,219.32,219.21,35.68129569]
[1738443481032,9.15539859,219.32,219.13,4.48]
[1738443481033,7.9886,219.27,219.12,4.5635]
[1738443481330,7.9886,219.27,219.01,22.26944716]
[1738443481331,20.0,219.17,219.01,27.96970313]
[1738443481544,2.4792194,219.16,219.01,13.14970313]
[1738443481710,20.0,219.12,219.01,1.22535798]
[1738443481895,0.96063729,219.14,219.01,1.22535798]
[1738443481896,20.0,219.08,219.01,1.22535798]
[1738443482103,0.85597327,219.07,218.97,0.063]
[1738443482537,20.0,219.08,218.97,0.063]
[1738443482741,0.85597611,219.07,218.97,0.063]
[1738443483312,6.3652,219.11,219.02,22.26944716]
[1738443483632,6.4983,219.21,219.1,22.26944716]
[1738443483835,0.8553907,219.2,219.1,3.52]
[1738443484927,20.0,219.18,219.02,3.5]
[1738443485244,0.85577032,219.17,219.02,23.5]
[1738443485404,0.85577032,219.17,219.02,3.5]
[1738443485610,21.81640761,219.17,219.01,3.5]
[1738443485830,21.81640761,219.17,219.01,23.5]
[1738443486006,20.85577032,219.17,219.01,3.5]
[1738443486211,20.85577032,219.17,219.01,23.5]
[1738443486624,20.85577032,219.17,219.01,23.563]
[1738443486828,21.81640761,219.17,219.01,0.063]
[1738443487001,1.0,219.16,219.01,0.063]
[1738443487328,0.85589681,219.15,219.01,0.063]
[1738443487525,21.96063729,219.13,219.01,0.063]
[1738443487725,0.85597951,219.12,219.01,0.063]
[1738443488740,6.4983,219.07,219.01,0.063]
[1738443488961,20.0,219.04,219.01,0.063]
[1738443489133,0.85619197,219.03,219.01,0.063]
[1738443489565,0.85620708,219.03,219.01,0.063]
[1738443490045,1.81684437,219.03,218.83,0.3263]
[1738443490230,1.81684437,219.03,218.8,35.80012224]
[1738443490231,20.0,219.0,218.8,35.80012224]
[1738443490431,21.94150408,219.04,218.85,35.80012224]
[1738443490432,0.8565288,218.99,218.85,35.80012224]
[1738443490631,0.85633708,219.03,218.9,35.80012224]
[1738443491033,20.0,219.04,218.9,35.80012224]
[1738443491231,0.85622717,219.03,218.89,35.80012224]
[1738443491459,20.0,219.04,218.92,13.41184853]
[1738443491666,0.85622716,219.06,218.88,35.80012224]
[1738443491965,0.85616857,219.05,218.91,20.0]
[1738443492151,0.85614058,219.06,218.91,35.80012224]
[1738443492458,20.0,219.04,218.88,35.80012224]
[1738443492669,0.85624175,219.03,218.88,35.80012224]
[1738443492865,0.85624316,219.05,218.89,13.41184853]
[1738443493071,20.0,219.04,218.9,13.41184853]
[1738443493274,0.85616673,219.03,218.9,13.41184853]
[1738443493754,0.85616673,219.03,218.89,13.41184853]
[1738443494136,0.85616673,219.03,218.9,20.0]
[1738443494773,0.85616673,219.03,218.89,20.0]
[1738443495632,0.85616673,219.03,218.86,35.80012224]
[1738443495866,20.85616673,219.03,218.83,35.80012224]
[1738443496049,20.85616673,219.03,218.84,39.30012224]
[1738443496688,20.0,218.99,218.85,3.5]
[1738443496847,0.85648133,218.98,218.86,13.41184853]
[1738443497053,0.85627901,219.06,218.87,35.80012224]
[1738443497363,20.0,219.03,218.88,35.80012224]
[1738443497561,20.0,219.03,218.88,13.41184853]
[1738443497562,0.85630778,219.02,218.88,13.41184853]
[1738443497954,0.85630778,219.02,218.87,13.41184853]
[1738443498990,0.85630778,219.02,218.88,35.80012224]
[1738443499586,0.85630778,219.02,218.89,35.80012224]
[1738443499793,0.85623763,219.06,218.9,35.80012224]
[1738443500583,0.85623763,219.06,218.95,35.80012224]
[1738443500756,0.85623763,219.06,218.94,35.80012224]
[1738443500961,0.85623763,219.06,218.93,35.80012224]
[1738443501580,0.85623763,219.06,218.93,13.41184853]
[1738443502087,8.48350575,219.07,218.96,35.80012224]
[1738443502386,6.4983,219.07,218.96,35.80012224]
[1738443502584,6.4983,219.07,218.94,35.80012224]
[1738443502960,6.4983,219.07,218.96,35.80012224]
[1738443503391,6.4983,219.07,218.95,35.80012224]
[1738443503681,6.4983,219.07,218.96,35.80012224]
[1738443504201,6.4983,219.07,218.97,35.80012224]
[1738443504409,6.4983,219.07,218.98,35.80012224]
[1738443505188,6.4983,219.07,218.96,40.36712224]
[1738443505504,6.4983,219.07,218.92,49.21197077]
[1738443505677,6.4983,219.07,218.93,3.5]
[1738443506007,0.85615523,219.06,218.93,3.5]
[1738443507211,0.85615523,219.06,218.91,20.0]
[1738443507212,0.85615523,219.06,218.92,13.41184853]
[1738443507385,0.85615523,219.06,218.94,22.04503257]
[1738443508209,0.85615523,219.06,218.93,22.04503257]
[1738443508417,0.85615523,219.06,218.92,38.9568811]
[1738443508716,0.85615523,219.06,218.92,16.91184853]
[1738443508893,0.85615523,219.06,218.92,13.41184853]
[1738443509093,0.85615523,219.06,218.93,3.5]
[1738443515634,20.0,219.04,218.9,22.04503257]
[1738443515802,0.85627249,219.03,218.88,3.5]
[1738443516125,1.6167,219.02,218.88,3.5]
[1738443516345,0.85635068,219.01,218.89,22.04503257]
[1738443516627,0.85635068,219.01,218.88,25.54503257]
[1738443516831,0.85635068,219.01,218.88,3.5]
[1738443518332,0.85635068,219.01,218.87,42.04503257]
[1738443518629,0.85635068,219.01,218.89,3.5]
[1738443519051,1.6167,219.02,218.93,22.04503257]
[1738443519217,0.85619505,219.01,218.89,3.5]
[1738443520458,0.85619505,219.01,218.87,22.04503257]
[1738443520762,0.85619505,219.01,218.88,3.5]
[1738443521120,0.85619505,219.01,218.88,22.04503257]
[1738443521331,0.85619505,219.01,218.89,3.5]
[1738443523154,6.2277,219.0,218.88,3.5]
[1738443523455,0.85627324,218.99,218.88,3.5]
[1738443524451,20.0,218.97,218.84,0.063]
[1738443524628,0.85639055,218.96,218.84,0.063]
[1738443525435,1.99444443,218.96,218.84,0.063]
[1738443526326,1.5362,218.95,218.84,0.063]
[1738443526547,20.0,218.9,218.84,0.063]
[1738443526742,0.85666441,218.89,218.84,0.063]
[1738443526969,1.5362,218.88,218.84,0.063]
[1738443527177,0.85674269,218.87,218.84,0.063]
[1738443531858,20.0,218.83,218.71,3.563]
[1738443532157,0.85693845,218.82,218.71,3.563]
[1738443532375,0.85693845,218.82,218.71,0.063]
[1738443533570,1.5362,218.81,218.71,0.063]
[1738443533761,20.0,218.76,218.69,3.437]
[1738443533949,0.85721266,218.75,218.69,3.437]
[1738443534145,0.85721266,218.75,218.63,0.063]
[1738443534965,0.85721266,218.75,218.62,0.063]
[1738443535175,20.0,218.67,218.56,3.5]
[1738443535379,0.85756548,218.66,218.53,0.063]
[1738443535781,1.81820277,218.66,218.45,7.02666841]
[1738443535971,13.41184853,218.61,218.46,3.5]
[1738443536173,13.41184853,218.61,218.45,7.02666841]
[1738443536174,20.0,218.58,218.45,7.02666841]
[1738443536356,0.85791858,218.57,218.45,7.02666841]
[1738443537162,0.85791858,218.57,218.42,13.41184853]
[1738443537361,0.85791858,218.57,218.42,35.4568811]
[1738443537765,0.85791858,218.57,218.47,0.063]
[1738443538282,13.41184853,218.56,218.47,0.063]
[1738443538453,0.85799709,218.55,218.47,0.063]
[1738443538653,20.0,218.58,218.47,0.063]
[1738443538853,0.85791857,218.57,218.47,0.063]
[1738443539375,6.1057,218.56,218.47,0.063]
[1738443539583,0.85799708,218.55,218.47,0.063]
[1738443540873,6.1057,218.56,218.47,0.063]
[1738443541994,0.85794593,218.55,218.47,0.063]
[1738443542488,6.1057,218.56,218.48,22.04503257]
[1738443542695,3.23545124,218.6,218.47,22.10803257]
[1738443542881,3.23545124,218.6,218.48,22.04503257]
[1738443543271,20.0,218.59,218.48,22.04503257]
[1738443543475,20.0,218.59,218.49,22.04503257]
[1738443543677,20.0,218.59,218.5,22.04503257]
[1738443544074,1.69925124,218.6,218.47,0.063]
[1738443544075,1.69925124,218.6,218.51,22.04503257]
[1738443544388,6.354,218.62,218.52,22.04503257]
[1738443544592,6.354,218.62,218.51,22.04503257]
[1738443546692,1.98775078,218.66,218.47,0.063]
[1738443546693,1.69717734,218.63,218.53,35.4568811]
[1738443546875,1.13023651,218.66,218.55,22.04503257]
[1738443547194,2.45237504,218.67,218.56,13.41184853]
[1738443547364,1.5949,218.67,218.56,13.41184853]
[1738443548377,3.62011348,218.67,218.56,13.41184853]
[1738443549096,5.35884574,218.67,218.56,13.41184853]
[1738443549291,20.0,218.64,218.49,22.04503257]
[1738443549497,0.8576319,218.63,218.51,3.5]
[1738443551007,0.8576319,218.63,218.5,22.04503257]
[1738443551301,0.8576319,218.63,218.52,35.4568811]
[1738443551506,20.0,218.64,218.53,22.04503257]
[1738443551712,20.0,218.64,218.52,35.4568811]
[1738443551888,20.0,218.64,218.54,22.04503257]
[1738443552284,20.0,218.64,218.54,13.41184853]
[1738443552729,0.85751423,218.66,218.54,35.4568811]
[1738443553211,20.0,218.64,218.54,35.4568811]
[1738443554715,0.85751423,218.66,218.54,35.4568811]
[1738443555728,20.0,218.64,218.54,35.4568811]
[1738443556830,20.0,218.64,218.55,22.04503257]
[1738443557023,20.0,218.64,218.56,22.04503257]
[1738443557325,20.0,218.65,218.54,22.04503257]
[1738443557501,20.85759264,218.64,218.53,22.04503257]
[1738443557703,20.0,218.64,218.54,22.04503257]
[1738443558316,20.0,218.64,218.55,22.04503257]
[1738443560319,0.85751419,218.66,218.55,13.41184853]
[1738443562405,0.88751419,218.66,218.55,13.41184853]
[1738443562834,0.03,218.66,218.56,13.41184853]
[1738443563131,0.88154151,218.66,218.53,0.063]
[1738443563317,0.88154151,218.66,218.54,20.0]
[1738443563504,0.88154151,218.66,218.55,13.41184853]
[1738443563928,0.88154151,218.66,218.57,13.41184853]
[1738443563929,20.0,218.65,218.57,13.41184853]
[1738443564144,0.03,218.66,218.59,13.82490697]
[1738443565223,0.03,218.66,218.61,13.41184853]
[1738443565649,0.03,218.66,218.61,27.2367555]
[1738443565953,0.03,218.66,218.61,13.41184853]
[1738443566150,0.03,218.66,218.57,13.82490697]
[1738443566330,0.88754183,218.66,218.53,13.88790697]
[1738443566523,0.88754183,218.66,218.53,0.063]
[1738443568048,0.88754183,218.66,218.54,20.0]
[1738443568229,0.88754183,218.66,218.55,16.91184853]
[1738443571650,6.3029,218.65,218.55,16.91184853]
[1738443576550,2.39564228,218.64,218.53,0.063]
[1738443577050,20.0,218.65,218.53,0.74926435]
[1738443577249,0.85145263,218.64,218.53,0.74926435]
[1738443577824,0.85145263,218.64,218.54,13.41184853]
[1738443578024,20.85145263,218.68,218.55,0.68615256]
[1738443578434,20.85145263,218.68,218.56,35.53443681]
[1738443578630,20.85145263,218.68,218.57,0.68607499]
[1738443578833,0.85145263,218.68,218.57,22.80866327]
[1738443579067,0.85145263,218.69,218.57,22.80866327]
[1738443579430,1.13970054,218.69,218.6,22.12258828]
[1738443579630,0.85145263,218.73,218.61,0.68598301]
[1738443579861,20.0,218.7,218.61,0.68598301]
[1738443580057,21.13535097,218.7,218.61,0.68598301]
[1738443580449,21.13535097,218.7,218.61,22.80857129]
[1738443580646,1.13535097,218.7,218.61,22.80857129]
[1738443580861,20.0,218.7,218.61,22.80857129]
[1738443581049,7.15435263,218.73,218.61,22.80857129]
[1738443581238,8.27413674,218.73,218.61,22.80857129]
[1738443581438,20.0,218.7,218.61,22.80857129]
[1738443582445,1.11978411,218.73,218.64,22.12258828]
[1738443582781,1.11978411,218.73,218.61,0.68598301]
[1738443582782,20.0,218.72,218.65,0.68586758]
[1738443582960,20.85145263,218.72,218.63,0.6859367]
[1738443583158,0.85145263,218.72,218.6,0.68598712]
[1738443585369,20.0,218.68,218.59,3.5]
[1738443585660,0.85145263,218.67,218.59,3.5]
[1738443585860,7.34575263,218.67,218.59,3.5]
[1738443587063,20.0,218.64,218.59,3.5]
[1738443587266,0.85145263,218.63,218.59,3.5]
[1738443588353,0.85145263,218.63,218.54,4.18618916]
[1738443591371,0.85145263,218.63,218.54,0.68618916]
[1738443591560,0.85145263,218.63,218.53,0.063]
[1738443592871,0.85145263,218.63,218.53,0.74926595]
[1738443594180,0.85145263,218.63,218.53,14.58553789]
[1738443595242,0.85145263,218.63,218.53,0.74926595]
[1738443595442,0.85145263,218.63,218.53,0.063]
[1738443598475,0.85145263,218.63,218.54,0.68629195]
[1738443599463,20.0,218.59,218.53,0.063]
[1738443599653,0.85145263,218.58,218.53,0.063]
[1738443600356,20.0,218.62,218.53,0.063]
[1738443600557,0.85145263,218.61,218.53,0.063]
[1738443601288,20.0,218.57,218.53,0.063]
[1738443601453,0.85145263,218.56,218.53,0.063]
[1738443601659,20.0,218.52,218.47,0.063]
[1738443601853,0.85145263,218.51,218.47,0.063]
[1738443602862,20.0,218.46,218.38,1.6232]
[1738443603065,0.85145263,218.45,218.35,0.68680663]
[1738443603265,13.41184853,218.44,218.34,7.02666841]
[1738443603578,0.85145263,218.43,218.34,7.71363107]
[1738443603798,0.85145263,218.45,218.34,7.02666841]
[1738443604076,0.85145263,218.45,218.32,8.37251673]
[1738443604253,20.0,218.45,218.32,8.37251673]
[1738443604456,0.85145263,218.44,218.32,8.37251673]
[1738443605176,2.00812216,218.44,218.32,8.37251673]
[1738443605476,2.00812216,218.44,218.32,7.6856]
[1738443605781,20.0,218.41,218.31,0.063]
[1738443605987,0.85145263,218.4,218.31,0.063]
[1738443606153,0.85145263,218.4,218.19,4.583]
[1738443606154,13.41184853,218.35,218.22,7.6856]
[1738443606347,20.85145263,218.34,218.22,7.6856]
[1738443606776,20.0,218.3,218.22,7.6856]
[1738443607083,0.85145263,218.29,218.22,7.6856]
[1738443607464,0.85145263,218.33,218.26,13.83627194]
[1738443607669,20.0,218.34,218.26,13.83627194]
[1738443607877,0.85145263,218.33,218.24,0.68710596]
[1738443608070,0.85145263,218.33,218.23,0.68721743]
[1738443608395,0.85145263,218.33,218.25,13.83627194]
[1738443608594,1.59813297,218.34,218.26,0.68715101]
[1738443608756,0.85145263,218.42,218.26,0.68715101]
[1738443608757,13.41184853,218.4,218.26,0.68715101]
[1738443608958,33.41184853,218.38,218.23,0.68716421]
[1738443609194,20.0,218.33,218.22,8.37284608]
[1738443609401,0.85145263,218.32,218.22,8.37284608]
[1738443609595,0.85145263,218.35,218.26,13.83627194]
[1738443609857,20.0,218.39,218.26,13.83627194]
[1738443610088,0.85145263,218.38,218.25,13.83627194]
[1738443610287,0.85145263,218.38,218.26,0.68710942]
[1738443610488,0.85145263,218.38,218.25,13.83627194]
[1738443610667,0.85145263,218.38,218.26,0.68710383]
[1738443610872,0.85145263,218.38,218.25,13.83627194]
[1738443611077,0.85145263,218.38,218.27,13.83627194]
[1738443611688,0.85145263,218.38,218.25,13.83627194]
[1738443611863,0.85145263,218.38,218.25,0.68713937]
[1738443612195,20.0,218.34,218.23,0.68718513]
[1738443612373,0.85145263,218.33,218.24,0.68722077]
[1738443612761,0.85145263,218.33,218.22,7.7486]
[1738443612964,20.0,218.28,218.1,13.83627194]
[1738443613166,0.85145263,218.27,218.11,0.68753756]
[1738443613471,0.85145263,218.27,218.08,13.83627194]
[1738443613472,20.0,218.23,218.12,0.68755386]
[1738443613666,0.85145263,218.22,218.12,0.68755386]
[1738443614275,0.85145263,218.22,218.05,4.649]
[1738443614276,20.0,218.18,218.06,18.02386443]
[1738443614458,0.85145263,218.17,218.06,4.18759249]
[1738443614864,0.85145263,218.17,218.07,13.83627194]
[1738443615082,0.96063729,218.27,218.08,14.52392806]
[1738443615083,0.85145263,218.24,218.08,14.52392806]
[1738443615283,20.0,218.2,218.08,14.52392806]
[1738443615479,0.85145263,218.19,218.08,14.52392806]
[1738443615681,0.85145263,218.19,218.08,22.90147355]
[1738443615886,0.85145263,218.19,218.08,26.40147355]
[1738443616388,0.85145263,218.19,218.08,4.18765612]
[1738443616764,0.85145263,218.19,218.08,3.5]
[1738443617280,0.85145263,218.19,218.09,0.68776026]
[1738443617988,0.85145263,218.19,218.08,3.5]
[1738443618693,0.85145263,218.19,218.05,0.7507346]
[1738443618992,20.0,218.15,218.05,0.063]
[1738443619176,20.0,218.15,218.05,22.96465298]
[1738443619377,20.0,218.15,218.05,22.27681743]
[1738443619577,0.85145263,218.17,218.06,22.21381743]
[1738443619794,0.85145263,218.2,218.06,22.21381743]
[1738443620186,0.85145263,218.2,218.08,22.21381743]
[1738443620497,0.85145263,218.2,218.09,0.68768851]
[1738443620800,0.85145263,218.21,218.09,0.68768851]
[1738443621299,0.85145263,218.21,218.08,0.68768126]
[1738443621592,20.0,218.13,218.05,0.063]
[1738443621769,0.85145263,218.12,218.05,0.063]
[1738443622198,20.0,218.08,218.05,0.063]
[1738443622403,0.85145263,218.07,218.05,0.063]
[1738443623683,33.41184853,218.06,218.05,0.063]
[1738443623887,33.41184853,218.06,218.03,0.063]
[1738443624099,0.85145263,218.05,218.03,0.063]
[1738443624413,0.85145263,218.05,217.96,0.063]
[1738443624414,20.0,218.01,217.96,0.063]
[1738443624716,0.85145263,218.0,217.96,0.063]
[1738443625391,0.85145263,218.0,217.92,0.063]
[1738443625594,0.85145263,218.01,217.92,0.063]
[1738443626206,20.0,217.97,217.92,0.063]
[1738443626417,0.85145263,217.96,217.92,0.063]
[1738443627598,1.42367228,217.98,217.92,0.063]
[1738443627798,0.85145263,218.0,217.92,0.063]
[1738443628497,0.85145263,218.01,217.92,0.063]
[1738443630709,0.85145263,218.01,217.92,0.75120365]
[1738443630904,0.85145263,218.01,217.93,22.21381743]
[1738443631105,0.85145263,218.05,217.94,0.68814192]
[1738443631313,20.85145263,218.05,217.94,0.68814192]
[1738443631539,20.85145263,218.05,217.92,0.75116438]
[1738443636601,20.85145263,218.05,217.92,0.063]
[1738443637111,20.0,218.03,217.92,0.75121197]
[1738443637310,0.85145263,218.02,217.92,0.75121197]
[1738443638008,20.0,218.01,217.92,0.063]
[1738443638214,20.0,217.96,217.92,0.063]
[1738443638414,0.85145263,217.95,217.92,0.063]
[1738443641051,13.41184853,217.94,217.84,0.68842875]
[1738443641261,20.0,217.91,217.82,0.063]
[1738443641420,20.0,217.87,217.82,0.063]
[1738443641614,0.85145263,217.86,217.82,0.063]
[1738443642344,0.85145263,217.86,217.75,0.37770645]
[1738443642929,0.85145263,217.86,217.75,0.55935622]
[1738443643134,0.85145263,217.86,217.74,0.5593988]
[1738443643342,2.31359673,217.86,217.74,0.5593988]
[1738443643543,0.85145263,217.86,217.74,0.5593988]
[1738443643853,0.85145263,217.86,217.73,5.1185]
[1738443643854,0.85145263,217.86,217.73,2.17796456]
[1738443644026,20.0,217.82,217.71,4.05951695]
[1738443644228,0.86107428,217.81,217.71,4.05951695]
[1738443645044,0.86107428,217.81,217.71,0.55951695]
[1738443645420,0.86107428,217.81,217.7,54.48]
[1738443645421,1.99795512,217.81,217.7,54.48]
[1738443645640,20.0,217.8,217.69,0.55963582]
[1738443645848,0.86118126,217.79,217.65,4.0598868]
[1738443646622,0.86118126,217.79,217.75,0.063]
[1738443647043,20.0,217.78,217.75,0.063]
[1738443647247,0.86131231,217.77,217.75,0.063]
[1738443647447,13.41184853,217.76,217.75,0.063]
[1738443647745,0.86139731,217.79,217.75,0.063]
[1738443648157,20.0,217.78,217.75,0.063]
[1738443648358,0.86129435,217.77,217.75,0.063]
[1738443648544,20.86129435,217.77,217.75,0.063]
[1738443651752,20.86129435,217.77,217.65,0.5599877]